[Event "*** Titled Tuesday Blitz"]
[Site "Chess.com"]
[Date "2020.12.01"]
[Round "11"]
[White "MillyNeuf"]
[Black "ikhasu"]
[Result "0-1"]
[WhiteElo "2323"]
[BlackElo "2425"]
[TimeControl "180+1"]
[EndTime "12:06:38 PST"]
[Termination "ikhasu won by resignation"]

1. e4 {[%clk 0:03:00.9]} 1... e5 {[%clk 0:02:58.6]} 2. Nc3 {[%clk 0:02:59.9]}
2... Nc6 {[%clk 0:02:57.8]} 3. Bc4 {[%clk 0:02:59.7]} 3... Bc5 {[%clk 0:02:54]}
4. Qg4 {[%clk 0:02:59.6]} 4... g6 {[%clk 0:02:47.8]} 5. Qf3 {[%clk 0:02:59.2]}
5... f6 {[%clk 0:02:14.7]} 6. Nge2 {[%clk 0:02:56.5]} 6... d6 {[%clk 0:02:08.9]}
7. d3 {[%clk 0:02:47.5]} 7... Na5 {[%clk 0:02:05.1]} 8. Be3 {[%clk 0:02:41.9]}
8... Nxc4 {[%clk 0:02:04]} 9. dxc4 {[%clk 0:02:42.2]} 9... Bxe3 {[%clk
0:01:58.2]} 10. Qxe3 {[%clk 0:02:43.1]} 10... Be6 {[%clk 0:01:58]} 11. b3 {[%clk
0:02:30]} 11... Ne7 {[%clk 0:01:56.6]} 12. O-O-O {[%clk 0:02:28.9]} 12... O-O
{[%clk 0:01:53.3]} 13. Nd5 {[%clk 0:02:29]} 13... Bxd5 {[%clk 0:01:37.5]} 14.
cxd5 {[%clk 0:02:29.9]} 14... a5 {[%clk 0:01:37.4]} 15. h4 {[%clk 0:02:22.7]}
15... a4 {[%clk 0:01:34.2]} 16. b4 {[%clk 0:02:19.4]} 16... a3 {[%clk
0:01:29.3]} 17. Qh6 {[%clk 0:02:08.8]} 17... Rf7 {[%clk 0:01:17.1]} 18. h5
{[%clk 0:02:07.1]} 18... g5 {[%clk 0:01:16.6]} 19. f4 {[%clk 0:01:23.2]} 19...
Kh8 {[%clk 0:00:48.2]} 20. Ng3 {[%clk 0:01:12.7]} 20... Ng8 {[%clk 0:00:45.3]}
21. Qg6 {[%clk 0:01:11.9]} 21... hxg6 {[%clk 0:00:40.5]} 22. hxg6+ {[%clk
0:01:12.8]} 22... Kg7 {[%clk 0:00:40.3]} 23. f5 {[%clk 0:00:20.5]} 23... Re7
{[%clk 0:00:28.7]} 24. Rh7+ {[%clk 0:00:14.1]} 24... Kf8 {[%clk 0:00:28.8]} 25.
Rdh1 {[%clk 0:00:12.2]} 25... Qd7 {[%clk 0:00:28.1]} 26. Rh8 {[%clk 0:00:07.4]}
26... Rg7 {[%clk 0:00:27.4]} 27. Nh5 {[%clk 0:00:06.4]} 27... Qe7 {[%clk
0:00:20.5]} 28. Nxg7 {[%clk 0:00:04.5]} 28... Qxg7 {[%clk 0:00:20.5]} 29. R1h7
{[%clk 0:00:05]} 29... c6 {[%clk 0:00:14.7]} 30. c4 {[%clk 0:00:03.9]} 30...
cxd5 {[%clk 0:00:14]} 31. cxd5 {[%clk 0:00:04.2]} 31... Rc8+ {[%clk 0:00:14.2]}
32. Kd2 {[%clk 0:00:03.9]} 32... Rc7 {[%clk 0:00:14.2]} 33. Rxg7 {[%clk
0:00:03.1]} 33... Rxg7 {[%clk 0:00:14]} 34. Rh7 {[%clk 0:00:03.3]} 34... Ne7
{[%clk 0:00:12.9]} 35. Rxg7 {[%clk 0:00:02.2]} 35... Kxg7 {[%clk 0:00:12.6]} 36.
Kc3 {[%clk 0:00:03.1]} 36... b5 {[%clk 0:00:10.1]} 37. g4 {[%clk 0:00:03]} 37...
Nc8 {[%clk 0:00:09.6]} 38. Kd3 {[%clk 0:00:02.7]} 38... Nb6 {[%clk 0:00:09.6]}
39. Kc3 {[%clk 0:00:03.2]} 39... Nc4 {[%clk 0:00:09.6]} 40. Kb3 {[%clk
0:00:03.7]} 40... Nd2+ {[%clk 0:00:09.8]} 41. Kxa3 {[%clk 0:00:04]} 41... Nxe4
{[%clk 0:00:10.3]} 42. Kb2 {[%clk 0:00:03.1]} 42... Nd2 {[%clk 0:00:10.5]} 43.
a4 {[%clk 0:00:02.6]} 43... bxa4 {[%clk 0:00:09.4]} 44. b5 {[%clk 0:00:02.1]}
44... Nc4+ {[%clk 0:00:09.3]} 45. Ka2 {[%clk 0:00:02.6]} 45... Nb6 {[%clk
0:00:09.4]} 46. Ka3 {[%clk 0:00:02.6]} 46... e4 {[%clk 0:00:09.7]} 47. Kb4
{[%clk 0:00:02.1]} 47... e3 {[%clk 0:00:09.9]} 48. Ka5 {[%clk 0:00:02.8]} 48...
e2 {[%clk 0:00:10]} 49. Kxb6 {[%clk 0:00:02.9]} 49... e1=Q {[%clk 0:00:09.7]}
50. Kc7 {[%clk 0:00:03.8]} 50... Qb4 {[%clk 0:00:10]} 51. b6 {[%clk 0:00:04]}
51... a3 {[%clk 0:00:09.9]} 52. b7 {[%clk 0:00:04.3]} 52... a2 {[%clk
0:00:10.1]} 53. b8=Q {[%clk 0:00:03.4]} 53... Qxb8+ {[%clk 0:00:10.5]} 54. Kxb8
{[%clk 0:00:04.3]} 54... a1=Q {[%clk 0:00:10.5]} 55. Kc7 {[%clk 0:00:05.2]}
55... Qa6 {[%clk 0:00:10.7]} 0-1

[Event "*** Titled Tuesday Blitz"]
[Site "Chess.com"]
[Date "2020.12.01"]
[Round "11"]
[White "Lupul_Cenusiu"]
[Black "SlovenskiZmaj"]
[Result "0-1"]
[WhiteElo "2567"]
[BlackElo "2478"]
[TimeControl "180+1"]
[EndTime "12:06:40 PST"]
[Termination "SlovenskiZmaj won by checkmate"]

1. d4 {[%clk 0:03:00.9]} 1... Nf6 {[%clk 0:02:58.6]} 2. c4 {[%clk 0:02:59.9]}
2... e6 {[%clk 0:02:57.8]} 3. Nc3 {[%clk 0:02:58.6]} 3... Bb4 {[%clk 0:02:57.4]}
4. e3 {[%clk 0:02:53.3]} 4... d5 {[%clk 0:02:49.5]} 5. Nf3 {[%clk 0:02:52.7]}
5... O-O {[%clk 0:02:47.8]} 6. Bd2 {[%clk 0:02:51.8]} 6... b6 {[%clk 0:02:16.5]}
7. Rc1 {[%clk 0:02:49]} 7... Bb7 {[%clk 0:02:16.3]} 8. cxd5 {[%clk 0:02:48]}
8... exd5 {[%clk 0:02:16.1]} 9. Be2 {[%clk 0:02:42.1]} 9... a6 {[%clk
0:02:15.5]} 10. Ne5 {[%clk 0:02:41.5]} 10... Bd6 {[%clk 0:02:11.4]} 11. O-O
{[%clk 0:02:37.1]} 11... c5 {[%clk 0:01:54.2]} 12. f4 {[%clk 0:02:34.5]} 12...
Nbd7 {[%clk 0:01:39.8]} 13. Be1 {[%clk 0:02:31.5]} 13... Ne4 {[%clk 0:01:25.3]}
14. Nxe4 {[%clk 0:02:27]} 14... dxe4 {[%clk 0:01:23.2]} 15. Nxd7 {[%clk
0:02:26]} 15... Qxd7 {[%clk 0:01:21.7]} 16. dxc5 {[%clk 0:02:25.8]} 16... bxc5
{[%clk 0:01:22.6]} 17. Rxc5 {[%clk 0:02:23.4]} 17... Rfd8 {[%clk 0:01:22.1]} 18.
Rc2 {[%clk 0:02:17.2]} 18... Qe7 {[%clk 0:01:22.2]} 19. Qc1 {[%clk 0:02:14.3]}
19... Rac8 {[%clk 0:01:18]} 20. Bg4 {[%clk 0:02:14]} 20... Rxc2 {[%clk 0:01:17]}
21. Qxc2 {[%clk 0:02:14.1]} 21... Bc5 {[%clk 0:01:17.9]} 22. Bf2 {[%clk
0:02:09.1]} 22... g6 {[%clk 0:01:18.3]} 23. Rd1 {[%clk 0:02:07]} 23... Bb6
{[%clk 0:01:11.9]} 24. Qb3 {[%clk 0:02:01.1]} 24... Rxd1+ {[%clk 0:01:09.6]} 25.
Bxd1 {[%clk 0:01:58.9]} 25... Bc5 {[%clk 0:01:08.4]} 26. a3 {[%clk 0:01:54.4]}
26... Bc6 {[%clk 0:01:05.4]} 27. Qc3 {[%clk 0:01:49.8]} 27... Bb5 {[%clk
0:01:02.8]} 28. Bc2 {[%clk 0:01:44.3]} 28... Ba7 {[%clk 0:00:52]} 29. b4 {[%clk
0:01:40.2]} 29... h5 {[%clk 0:00:50.4]} 30. h3 {[%clk 0:01:38]} 30... Kh7 {[%clk
0:00:36.2]} 31. Bb3 {[%clk 0:01:20.9]} 31... Bd3 {[%clk 0:00:30.3]} 32. Bd5
{[%clk 0:01:14.7]} 32... g5 {[%clk 0:00:20.5]} 33. fxg5 {[%clk 0:01:03.5]} 33...
Qxg5 {[%clk 0:00:21.4]} 34. Qc7 {[%clk 0:01:02.2]} 34... Bxe3 {[%clk 0:00:21.5]}
35. Qxf7+ {[%clk 0:00:59.6]} 35... Kh6 {[%clk 0:00:22.1]} 36. Qf8+ {[%clk
0:00:58.6]} 36... Kh7 {[%clk 0:00:22.6]} 37. Bxe3 {[%clk 0:00:45.8]} 37... Qxe3+
{[%clk 0:00:22.1]} 38. Kh2 {[%clk 0:00:45.9]} 38... Qg5 {[%clk 0:00:18.7]} 39.
Qf7+ {[%clk 0:00:43.6]} 39... Kh6 {[%clk 0:00:17.2]} 40. Qe6+ {[%clk 0:00:42.8]}
40... Kh7 {[%clk 0:00:17.7]} 41. Qd6 {[%clk 0:00:40.5]} 41... Kg7 {[%clk
0:00:16.5]} 42. Bc6 {[%clk 0:00:31.6]} 42... h4 {[%clk 0:00:15.4]} 43. Bd7
{[%clk 0:00:25]} 43... Qf6 {[%clk 0:00:12.8]} 44. Qxf6+ {[%clk 0:00:19.8]} 44...
Kxf6 {[%clk 0:00:13.7]} 45. Kg1 {[%clk 0:00:18]} 45... e3 {[%clk 0:00:13.4]} 46.
a4 {[%clk 0:00:12.8]} 46... Ke7 {[%clk 0:00:12.2]} 47. Bg4 {[%clk 0:00:12]}
47... Kd6 {[%clk 0:00:12.5]} 48. Bf3 {[%clk 0:00:11.9]} 48... Ke5 {[%clk
0:00:11.9]} 49. Bc6 {[%clk 0:00:10.8]} 49... Kf4 {[%clk 0:00:11.1]} 50. b5
{[%clk 0:00:10.6]} 50... Kg3 {[%clk 0:00:07.7]} 51. Bf3 {[%clk 0:00:10.3]} 51...
axb5 {[%clk 0:00:08.1]} 52. axb5 {[%clk 0:00:08.9]} 52... Bxb5 {[%clk 0:00:09]}
53. Bg4 {[%clk 0:00:08.4]} 53... e2 {[%clk 0:00:08.6]} 54. Bxe2 {[%clk
0:00:08.3]} 54... Bxe2 {[%clk 0:00:09.5]} 55. Kh1 {[%clk 0:00:08.7]} 55... Bc4
{[%clk 0:00:08]} 56. Kg1 {[%clk 0:00:08.4]} 56... Bd5 {[%clk 0:00:08.7]} 57. Kf1
{[%clk 0:00:08.3]} 57... Bxg2+ {[%clk 0:00:09.3]} 58. Kg1 {[%clk 0:00:08.8]}
58... Bxh3 {[%clk 0:00:10.2]} 59. Kh1 {[%clk 0:00:09.1]} 59... Bg4 {[%clk
0:00:11.1]} 60. Kg1 {[%clk 0:00:09.7]} 60... h3 {[%clk 0:00:12]} 61. Kh1 {[%clk
0:00:10.2]} 61... Bf3+ {[%clk 0:00:12.5]} 62. Kg1 {[%clk 0:00:10.7]} 62... h2+
{[%clk 0:00:13.4]} 63. Kf1 {[%clk 0:00:10.8]} 63... h1=Q# {[%clk 0:00:14.3]} 0-1

[Event "*** Titled Tuesday Blitz"]
[Site "Chess.com"]
[Date "2020.12.01"]
[Round "11"]
[White "Sanyura"]
[Black "szabadaba"]
[Result "0-1"]
[WhiteElo "2535"]
[BlackElo "2683"]
[TimeControl "180+1"]
[EndTime "12:06:41 PST"]
[Termination "szabadaba won by checkmate"]

1. e4 {[%clk 0:02:56.7]} 1... c6 {[%clk 0:02:59.9]} 2. Nf3 {[%clk 0:02:56.4]}
2... d5 {[%clk 0:03:00.5]} 3. Nc3 {[%clk 0:02:57.1]} 3... dxe4 {[%clk
0:03:00.5]} 4. Nxe4 {[%clk 0:02:58]} 4... Nd7 {[%clk 0:03:00.8]} 5. Qe2 {[%clk
0:02:58.2]} 5... Ndf6 {[%clk 0:03:00.7]} 6. d4 {[%clk 0:02:57.4]} 6... Bg4
{[%clk 0:03:00.5]} 7. c3 {[%clk 0:02:51.8]} 7... e6 {[%clk 0:03:00.4]} 8. h3
{[%clk 0:02:44.4]} 8... Bh5 {[%clk 0:02:59.8]} 9. Ng3 {[%clk 0:02:43]} 9... Bg6
{[%clk 0:02:59]} 10. Ne5 {[%clk 0:02:40.4]} 10... Bd6 {[%clk 0:02:56.6]} 11. h4
{[%clk 0:02:39.7]} 11... Ne7 {[%clk 0:02:55.6]} 12. h5 {[%clk 0:02:32.4]} 12...
Bf5 {[%clk 0:02:55.3]} 13. Bg5 {[%clk 0:02:32.6]} 13... h6 {[%clk 0:02:53]} 14.
Bh4 {[%clk 0:02:09.3]} 14... Bh7 {[%clk 0:02:46]} 15. Qf3 {[%clk 0:01:53.6]}
15... Ned5 {[%clk 0:02:31.4]} 16. Bc4 {[%clk 0:01:49.7]} 16... Qc7 {[%clk
0:02:28.7]} 17. O-O {[%clk 0:01:44.6]} 17... Bxe5 {[%clk 0:02:22.4]} 18. dxe5
{[%clk 0:01:44.7]} 18... Qxe5 {[%clk 0:02:22.3]} 19. Rad1 {[%clk 0:01:07.7]}
19... Qf4 {[%clk 0:02:09.1]} 20. Qxf4 {[%clk 0:00:45.9]} 20... Nxf4 {[%clk
0:02:08.2]} 21. Bxf6 {[%clk 0:00:46.5]} 21... gxf6 {[%clk 0:02:07.1]} 22. Rd4
{[%clk 0:00:44]} 22... Nd5 {[%clk 0:01:53.7]} 23. Re1 {[%clk 0:00:43.4]} 23...
O-O-O {[%clk 0:01:51.6]} 24. Bxd5 {[%clk 0:00:39.5]} 24... Rxd5 {[%clk
0:01:47.9]} 25. Rf4 {[%clk 0:00:39.5]} 25... f5 {[%clk 0:01:41.3]} 26. c4 {[%clk
0:00:36.1]} 26... Rd2 {[%clk 0:01:39.7]} 27. b4 {[%clk 0:00:34.5]} 27... Rxa2
{[%clk 0:01:31.1]} 28. b5 {[%clk 0:00:35]} 28... c5 {[%clk 0:01:27]} 29. b6
{[%clk 0:00:22.3]} 29... axb6 {[%clk 0:01:25.8]} 30. Rf3 {[%clk 0:00:22.7]}
30... Rd8 {[%clk 0:01:23.2]} 31. Ne2 {[%clk 0:00:20.8]} 31... Rdd2 {[%clk
0:00:53.3]} 32. Nc3 {[%clk 0:00:20.4]} 32... Ra3 {[%clk 0:00:47]} 33. Rg3 {[%clk
0:00:14.6]} 33... Kd8 {[%clk 0:00:34.8]} 34. Rb1 {[%clk 0:00:12.4]} 34... f4
{[%clk 0:00:32.6]} 35. Rg7 {[%clk 0:00:06.1]} 35... Bxb1 {[%clk 0:00:31.9]} 36.
Nxb1 {[%clk 0:00:06.5]} 36... Rd1+ {[%clk 0:00:31.6]} 37. Kh2 {[%clk 0:00:07.4]}
37... Rxb1 {[%clk 0:00:31.9]} 38. Rh7 {[%clk 0:00:08]} 38... Raa1 {[%clk
0:00:30.4]} 39. Kh3 {[%clk 0:00:08.5]} 39... Rh1+ {[%clk 0:00:29.1]} 40. Kg4
{[%clk 0:00:08.2]} 40... Rag1 {[%clk 0:00:29.1]} 41. Kf3 {[%clk 0:00:07.8]}
41... Rxh5 {[%clk 0:00:28.7]} 42. Kxf4 {[%clk 0:00:06.4]} 42... Rxg2 {[%clk
0:00:27.8]} 43. Kf3 {[%clk 0:00:06.9]} 43... Rgg5 {[%clk 0:00:26.5]} 44. Ke4
{[%clk 0:00:06.7]} 44... Re5+ {[%clk 0:00:26.4]} 45. Kf4 {[%clk 0:00:06.3]}
45... Ref5+ {[%clk 0:00:26.9]} 46. Ke4 {[%clk 0:00:06.2]} 46... Ke7 {[%clk
0:00:27.4]} 47. f4 {[%clk 0:00:05.8]} 47... Rh4 {[%clk 0:00:27.6]} 48. Ke3
{[%clk 0:00:06.3]} 48... Rhxf4 {[%clk 0:00:27.5]} 49. Rxh6 {[%clk 0:00:06.1]}
49... Rxc4 {[%clk 0:00:27.6]} 50. Rh2 {[%clk 0:00:04.8]} 50... Rb4 {[%clk
0:00:26.8]} 51. Kd3 {[%clk 0:00:04.7]} 51... Rg5 {[%clk 0:00:26.5]} 52. Kc3
{[%clk 0:00:04.8]} 52... Rg3+ {[%clk 0:00:26.3]} 53. Kc2 {[%clk 0:00:05.3]}
53... Rbg4 {[%clk 0:00:25.4]} 54. Rh7 {[%clk 0:00:04.5]} 54... c4 {[%clk
0:00:25.5]} 55. Rh5 {[%clk 0:00:04.2]} 55... f5 {[%clk 0:00:24.5]} 56. Rh7+
{[%clk 0:00:04.1]} 56... Kd6 {[%clk 0:00:25]} 57. Rxb7 {[%clk 0:00:04.7]} 57...
Kc5 {[%clk 0:00:25.6]} 58. Rc7+ {[%clk 0:00:04.9]} 58... Kb4 {[%clk 0:00:25.8]}
59. Rd7 {[%clk 0:00:05.5]} 59... Rg2+ {[%clk 0:00:25.7]} 60. Kd1 {[%clk
0:00:06]} 60... Rh4 {[%clk 0:00:23.4]} 61. Rh7 {[%clk 0:00:03.6]} 61... Rxh7
{[%clk 0:00:22.6]} 62. Ke1 {[%clk 0:00:03.2]} 62... Rh1# {[%clk 0:00:21.8]} 0-1

[Event "*** Titled Tuesday Blitz"]
[Site "Chess.com"]
[Date "2020.12.01"]
[Round "11"]
[White "zurzan"]
[Black "Tsyhanchuk_Stanislav"]
[Result "1/2-1/2"]
[WhiteElo "2079"]
[BlackElo "2200"]
[TimeControl "180+1"]
[EndTime "12:06:49 PST"]
[Termination "Game drawn by repetition"]

1. f4 {[%clk 0:03:00.9]} 1... c6 {[%clk 0:02:57.3]} 2. Nf3 {[%clk 0:03:01]} 2...
d5 {[%clk 0:02:58.2]} 3. g3 {[%clk 0:03:01.5]} 3... g6 {[%clk 0:02:58.4]} 4. Bg2
{[%clk 0:03:02.4]} 4... Bg7 {[%clk 0:02:59.2]} 5. O-O {[%clk 0:03:03]} 5... Bg4
{[%clk 0:02:59.3]} 6. d3 {[%clk 0:03:03.9]} 6... e6 {[%clk 0:02:59.3]} 7. c3
{[%clk 0:03:04]} 7... Bxf3 {[%clk 0:02:59.5]} 8. Bxf3 {[%clk 0:03:03.6]} 8...
Ne7 {[%clk 0:03:00.4]} 9. e4 {[%clk 0:03:01.7]} 9... dxe4 {[%clk 0:03:00.6]} 10.
dxe4 {[%clk 0:03:02.6]} 10... Qxd1 {[%clk 0:03:00.4]} 11. Rxd1 {[%clk
0:03:02.7]} 11... O-O {[%clk 0:03:00.7]} 12. Be3 {[%clk 0:03:00.6]} 12... e5
{[%clk 0:02:57.1]} 13. Bc5 {[%clk 0:02:57.8]} 13... Re8 {[%clk 0:02:50.9]} 14.
Na3 {[%clk 0:02:55.3]} 14... exf4 {[%clk 0:02:50.3]} 15. gxf4 {[%clk 0:02:54.6]}
15... Na6 {[%clk 0:02:49.7]} 16. Bd6 {[%clk 0:02:50.1]} 16... h5 {[%clk
0:02:39.4]} 17. Nc4 {[%clk 0:02:34.2]} 17... Rad8 {[%clk 0:02:27.4]} 18. Na5
{[%clk 0:02:28.8]} 18... Nc8 {[%clk 0:02:09.5]} 19. e5 {[%clk 0:02:07.5]} 19...
Nxd6 {[%clk 0:01:48.3]} 20. Rxd6 {[%clk 0:02:07.1]} 20... Rxd6 {[%clk 0:01:48]}
21. exd6 {[%clk 0:02:07.6]} 21... Nc5 {[%clk 0:01:35]} 22. b4 {[%clk 0:02:03.7]}
22... Bxc3 {[%clk 0:01:33.9]} 23. bxc5 {[%clk 0:01:43.5]} 23... Bxa5 {[%clk
0:01:31.7]} 24. Rb1 {[%clk 0:01:41.4]} 24... Bc3 {[%clk 0:01:10.2]} 25. Rxb7
{[%clk 0:01:35.1]} 25... Bd4+ {[%clk 0:01:09.9]} 26. Kg2 {[%clk 0:01:34.6]}
26... Bxc5 {[%clk 0:01:10.8]} 27. Bxc6 {[%clk 0:01:34.4]} 27... Rd8 {[%clk
0:00:26.2]} 28. d7 {[%clk 0:01:33]} 28... Kf8 {[%clk 0:00:25.4]} 29. a4 {[%clk
0:01:16.8]} 29... Bb6 {[%clk 0:00:21.7]} 30. Kf3 {[%clk 0:01:10.4]} 30... Ke7
{[%clk 0:00:20.9]} 31. Bb5 {[%clk 0:01:09.6]} 31... f6 {[%clk 0:00:15.3]} 32. h3
{[%clk 0:01:08.6]} 32... g5 {[%clk 0:00:14.9]} 33. fxg5 {[%clk 0:01:08.4]} 33...
fxg5 {[%clk 0:00:15.5]} 34. Ke4 {[%clk 0:01:07.4]} 34... g4 {[%clk 0:00:12.6]}
35. hxg4 {[%clk 0:01:06.9]} 35... hxg4 {[%clk 0:00:13.5]} 36. Kf4 {[%clk
0:01:05.1]} 36... Rg8 {[%clk 0:00:12.6]} 37. Kg3 {[%clk 0:01:03.7]} 37... Rd8
{[%clk 0:00:04.2]} 38. Kxg4 {[%clk 0:01:03]} 38... Rg8+ {[%clk 0:00:04.6]} 39.
Kf5 {[%clk 0:01:02.8]} 39... Rf8+ {[%clk 0:00:05.1]} 40. Ke5 {[%clk 0:01:02.1]}
40... Rd8 {[%clk 0:00:05.6]} 41. Kd5 {[%clk 0:01:01.4]} 41... Rf8 {[%clk
0:00:04.5]} 42. Ke4 {[%clk 0:00:41.6]} 42... Rd8 {[%clk 0:00:03.6]} 43. Bc6
{[%clk 0:00:41.1]} 43... Rf8 {[%clk 0:00:03.1]} 44. Bd5 {[%clk 0:00:36.1]} 44...
Rd8 {[%clk 0:00:02.8]} 45. Bc6 {[%clk 0:00:35.6]} 45... Rf8 {[%clk 0:00:03.3]}
46. a5 {[%clk 0:00:35.2]} 46... Bxa5 {[%clk 0:00:02.2]} 47. Rxa7 {[%clk
0:00:35.4]} 47... Bd8 {[%clk 0:00:02.8]} 48. Kd5 {[%clk 0:00:33.7]} 48... Rf6
{[%clk 0:00:03.3]} 49. Ba4 {[%clk 0:00:32.1]} 49... Rd6+ {[%clk 0:00:03.3]} 50.
Kc5 {[%clk 0:00:31.8]} 50... Rf6 {[%clk 0:00:03.5]} 51. Bc6 {[%clk 0:00:30.3]}
51... Rf5+ {[%clk 0:00:03.5]} 52. Bd5 {[%clk 0:00:30.3]} 52... Rf6 {[%clk
0:00:04]} 53. Rb7 {[%clk 0:00:29]} 53... Rd6 {[%clk 0:00:03.1]} 54. Bc6 {[%clk
0:00:28.5]} 54... Rf6 {[%clk 0:00:02.9]} 55. Rb8 {[%clk 0:00:28.3]} 55... Rf5+
{[%clk 0:00:02.8]} 56. Kc4 {[%clk 0:00:27.4]} 56... Rf6 {[%clk 0:00:02.8]} 57.
Bb5 {[%clk 0:00:26.4]} 57... Rf4+ {[%clk 0:00:02.1]} 58. Kb3 {[%clk 0:00:25.9]}
58... Rf6 {[%clk 0:00:03]} 59. Rc8 {[%clk 0:00:24.5]} 59... Rd6 {[%clk
0:00:03.4]} 60. Kc4 {[%clk 0:00:22.9]} 60... Rf6 {[%clk 0:00:03.8]} 61. Kd5
{[%clk 0:00:20.8]} 61... Rd6+ {[%clk 0:00:04.1]} 62. Kc4 {[%clk 0:00:20.8]}
62... Re6 {[%clk 0:00:04]} 63. Kd5 {[%clk 0:00:20.6]} 63... Rd6+ {[%clk
0:00:04.4]} 64. Kc4 {[%clk 0:00:21]} 1/2-1/2

[Event "*** Titled Tuesday Blitz"]
[Site "Chess.com"]
[Date "2020.12.01"]
[Round "11"]
[White "maxip32"]
[Black "HackingKid98"]
[Result "1-0"]
[WhiteElo "2497"]
[BlackElo "2374"]
[TimeControl "180+1"]
[EndTime "12:06:51 PST"]
[Termination "maxip32 won on time"]

1. f4 {[%clk 0:02:59.8]} 1... e5 {[%clk 0:02:53.3]} 2. fxe5 {[%clk 0:02:59.8]}
2... d6 {[%clk 0:02:53.6]} 3. exd6 {[%clk 0:03:00.6]} 3... Bxd6 {[%clk
0:02:53.9]} 4. Nf3 {[%clk 0:03:01.1]} 4... g5 {[%clk 0:02:53.7]} 5. g3 {[%clk
0:03:00]} 5... g4 {[%clk 0:02:53.7]} 6. Nh4 {[%clk 0:03:00.6]} 6... Ne7 {[%clk
0:02:54.2]} 7. d4 {[%clk 0:03:01]} 7... Ng6 {[%clk 0:02:54.3]} 8. Nxg6 {[%clk
0:03:01.5]} 8... hxg6 {[%clk 0:02:54.1]} 9. Qd3 {[%clk 0:03:02.4]} 9... Bf5
{[%clk 0:02:39.8]} 10. e4 {[%clk 0:03:02.3]} 10... Bd7 {[%clk 0:02:30.4]} 11.
Bg2 {[%clk 0:02:57.7]} 11... Nc6 {[%clk 0:02:29.7]} 12. c3 {[%clk 0:02:57.6]}
12... Qe7 {[%clk 0:02:08]} 13. Nd2 {[%clk 0:02:56.3]} 13... O-O-O {[%clk
0:02:07.8]} 14. Nc4 {[%clk 0:02:55.9]} 14... Bf5 {[%clk 0:01:46.1]} 15. Nxd6+
{[%clk 0:02:52.9]} 15... Rxd6 {[%clk 0:01:37.7]} 16. Bf4 {[%clk 0:02:52.5]}
16... Re6 {[%clk 0:01:34.3]} 17. O-O-O {[%clk 0:01:41.5]} 17... Bxe4 {[%clk
0:01:30.1]} 18. Bxe4 {[%clk 0:01:41]} 18... Rxe4 {[%clk 0:01:31]} 19. Be5 {[%clk
0:01:36.1]} 19... Rxe5 {[%clk 0:01:04.5]} 20. dxe5 {[%clk 0:01:35.9]} 20... Nxe5
{[%clk 0:01:04.4]} 21. Qd4 {[%clk 0:01:34.6]} 21... f6 {[%clk 0:00:38.3]} 22.
Qxa7 {[%clk 0:01:33.1]} 22... Nc6 {[%clk 0:00:33.9]} 23. Qf2 {[%clk 0:01:20.1]}
23... Qe6 {[%clk 0:00:33.8]} 24. Kb1 {[%clk 0:01:17.4]} 24... f5 {[%clk
0:00:33.3]} 25. Rhe1 {[%clk 0:01:16]} 25... Qc4 {[%clk 0:00:32.6]} 26. Qe2
{[%clk 0:01:15.6]} 26... Qc5 {[%clk 0:00:25.2]} 27. Qe6+ {[%clk 0:01:05.9]}
27... Kb8 {[%clk 0:00:25]} 28. Rd2 {[%clk 0:00:47.3]} 28... Na5 {[%clk
0:00:21.4]} 29. Qd5 {[%clk 0:00:21.5]} 29... Qb6 {[%clk 0:00:19.2]} 30. Qd4
{[%clk 0:00:20.4]} 30... Qxd4 {[%clk 0:00:15.4]} 31. cxd4 {[%clk 0:00:21]} 31...
Nc4 {[%clk 0:00:15.3]} 32. Rde2 {[%clk 0:00:21.3]} 32... Nd6 {[%clk 0:00:15.3]}
33. b3 {[%clk 0:00:19.9]} 33... Ne4 {[%clk 0:00:15.3]} 34. Kc2 {[%clk
0:00:19.4]} 34... c6 {[%clk 0:00:14.1]} 35. Rd1 {[%clk 0:00:19.4]} 35... Kc7
{[%clk 0:00:14.1]} 36. d5 {[%clk 0:00:19.8]} 36... c5 {[%clk 0:00:14.2]} 37. Kd3
{[%clk 0:00:18.1]} 37... Kd6 {[%clk 0:00:13.9]} 38. Kc4 {[%clk 0:00:18]} 38...
Ra8 {[%clk 0:00:12.2]} 39. a4 {[%clk 0:00:17.8]} 39... Ra6 {[%clk 0:00:11.7]}
40. Kd3 {[%clk 0:00:13.5]} 40... Rb6 {[%clk 0:00:11.4]} 41. Kc2 {[%clk
0:00:13.8]} 41... Rb4 {[%clk 0:00:11.4]} 42. a5 {[%clk 0:00:12.7]} 42... Rb5
{[%clk 0:00:10.6]} 43. Ra1 {[%clk 0:00:11.9]} 43... Kxd5 {[%clk 0:00:10.1]} 44.
a6 {[%clk 0:00:12.3]} 44... bxa6 {[%clk 0:00:09.4]} 45. Rxa6 {[%clk 0:00:13.2]}
45... c4 {[%clk 0:00:09.7]} 46. bxc4+ {[%clk 0:00:13.3]} 46... Kxc4 {[%clk
0:00:10.6]} 47. Rxg6 {[%clk 0:00:12.5]} 47... Kd4 {[%clk 0:00:10.1]} 48. Rg8
{[%clk 0:00:09.7]} 48... Rc5+ {[%clk 0:00:09.9]} 49. Kb3 {[%clk 0:00:10]} 49...
Kd3 {[%clk 0:00:08.7]} 50. Re1 {[%clk 0:00:09]} 50... Rb5+ {[%clk 0:00:08.4]}
51. Ka4 {[%clk 0:00:09]} 51... Rb2 {[%clk 0:00:07]} 52. Rd8+ {[%clk 0:00:07.6]}
52... Kc4 {[%clk 0:00:06.6]} 53. Rc8+ {[%clk 0:00:07.9]} 53... Nc5+ {[%clk
0:00:06.2]} 54. Ka3 {[%clk 0:00:07.5]} 54... Rb3+ {[%clk 0:00:02.1]} 55. Ka2
{[%clk 0:00:07.8]} 1-0